Workbook

Sheet Devis à remplir
A1: N° | B1: Désignation | C1: Unité | D1: Quantité | E1: PU HT | F1: Montant HT | G1: Taux TVA
A3: Comment utiliser cet outil ? C'est simple ! - Dépliez les catégories à compléter en appuyant sur les boutons "+" sur le bord gauche de l'écran. - Remplissez les cases vertes des lignes qui concernent votre prestation, et détaillez les descriptions si besoin. Attention : vous ne pouvez cliquer que sur les cases à modifier. (Astuce : laissez votre souris sur les cases avec un triangle dans le coin supérieur droit pour voir s'afficher une aide). (Attention : le taux normal de TVA de 20 % s'applique dans la majorité des cas. Pour savoir si certaines prestations bénéficient d'une TVA à taux réduit, vous pouvez vous référer au guide Unep sur la TVA ou contacter le SVP fiscal). (Pour rappel : les prix des prestations de la catégorie "Prix pour mémoire" ne sont pas comptabilisés dans le total). - Cliquez sur le bouton de mise en page au bas du tableau (ligne 550). - Allez dans l'onglet "Devis final" pour remplir l'en-tête et les CGV en bas de page (n'oubliez pas de supprimer les aides en vert) et imprimer le devis. (Pour information : appuyer de nouveau sur le bouton de mise en page ne modifie que les lignes de prestations, vos en-têtes et CGV personnalisées ne sont pas supprimées). En cas de problème, vous pouvez retélécharger ce fichier sur le site de l'Unep.
A5: Travaux des sols | F5: =IF(MAX(F7:F38)<>0,"A",0) -> 0
B7: Cartographie des sols en place | C7: FORFAIT | F7: =E7*D7 -> 0.00 €
B8: Étapes : réalisation des observations ; cartographie. Précisions : observations par tarière/fosse ; type de matériel utilisé (). | F8: =IF(F7<>0,"A",0) -> 0
B9: Analyse de terre | C9: UNITE | F9: =E9*D9 -> 0.00 €
B10: Étapes : prélèvement des échantillons de sol ; analyse en laboratoire. Précisions : type d'analyse () ; laboratoire (). | F10: =IF(F9<>0,"A",0) -> 0
B11: Décapage | C11: mᵌ | F11: =E11*D11 -> 0.00 €
B12: Étapes : identification des différentes couches ; décapage puis stockage de la couche supérieure ; décapage puis stockage des couches sous-jacentes. Précisions : nombre de passages () et profondeur des couches () cm ; type de matériel utilisé () ; sur sol sec. | F12: =IF(F11<>0,"A",0) -> 0
B13: Concassage | C13: m² | F13: =E13*D13 -> 0.00 €
B14: Étapes : concassage. Précisions : type de matériel utilisé (). | F14: =IF(F13<>0,"A",0) -> 0
B15: Criblage | C15: m² | F15: =E15*D15 -> 0.00 €
B16: Étapes : criblage ; évacuation/enfouissage des refus de criblage. Précisions : type de matériel utilisé () ; sur sol sec. | F16: =IF(F15<>0,"A",0) -> 0
B17: Stockage des terres ressources | C17: m² | F17: =E17*D17 -> 0.00 €
B18: Étapes : aménagement de la zone de stockage () ; dépôt des terres ressources ; mise en forme des andains ; bachage/ensemencement éventuel. Précisions : type de matériel utilisé () ; type de bâche imperméable () / dosage de l'ensemencement (). | F18: =IF(F17<>0,"A",0) -> 0
A19: PC | B19: Observation et consignation des conditions de stockage | F19: =IF(F17<>0,"A",0) -> 0
B20: Protection mécanique des arbres | C20: UNITE | F20: =E20*D20 -> 0.00 €
B21: Étapes : fourniture et réalisation de la protection. Précisions : type de protection (). | F21: =IF(F20<>0,"A",0) -> 0
B22: Remédiation | C22: mᵌ | F22: =E22*D22 -> 0.00 €
B23: Étapes : déstockage ; séchage éventuel ; émiettage éventuel ; amendements organiques éventuels. Précisions : type de matériel utilisé () ; type d'amendement éventuel (). | F23: =IF(F22<>0,"A",0) -> 0
B24: Décompactage du fond de forme | C24: m² | F24: =E24*D24 -> 0.00 €
B25: Étapes : réalisation du décompactage. Précisions : type de matériel utilisé () ; épaisseur () cm. | F25: =IF(F24<>0,"A",0) -> 0
B26: Mise en place des sols reconstitués | C26: mᵌ | F26: =E26*D26 -> 0.00 €
B27: Étapes : aménagement éventuel du fond de forme ; mise en place des sols reconstitués. Précisions : type de matériel utilisé () ; sur sol ressuyé et en période sèche. | F27: =IF(F26<>0,"A",0) -> 0
A28: PC | B28: Réalisation de sondages pour contrôler les épaisseurs en place et estimer la compacité du sol reconstitué | F28: =IF(F26<>0,"A",0) -> 0
B29: Réalisation de fosses de plantation | C29: mᵌ | F29: =E29*D29 -> 0.00 €
B30: Étapes : ouverture de la fosse ; décompactage du fond et des parois ; drainage éventuel ; évacuation des matériaux ou remblaiement. Précisions : type de matériel utilisé () ; volume de fosse () mᵌ ; type de drain éventuel (). | F30: =IF(F29<>0,"A",0) -> 0
B31: Reconstitution de sol en mélange terre-pierre | C31: mᵌ | F31: =E31*D31 -> 0.00 €
B32: Étapes : contrôle de l'humidité ; fourniture et mise en place des différentes couches ; compactage. Précisions : type de matériel utilisé () ; proportion du mélange () et volume () ; sur sol sec et sans plombage à l'eau. | F32: =IF(F31<>0,"A",0) -> 0
B33: Mise en œuvre de substrats de plantation circulables | C33: mᵌ | F33: =E33*D33 -> 0.00 €
B34: Étapes : contrôle de l'humidité ; fourniture et mise en place des différentes couches ; compactage. Précisions : type de matériel utilisé () ; type de substrat () et volume () ; sur sol sec et sans plombage à l'eau. | F34: =IF(F33<>0,"A",0) -> 0
B35: Mise en œuvre de supports de culture | C35: mᵌ | F35: =E35*D35 -> 0.00 €
B36: Étapes : fourniture et mise en place. Précisions : type de matériel utilisé () ; type de support de culture () et volume/épaisseur (). | F36: =IF(F35<>0,"A",0) -> 0
B37: Mise en place d'une barrière anti-rhizome | C37: ml | F37: =E37*D37 -> 0.00 €
B38: Étapes : fourniture et mise en place de la barrière anti-rhizome. Précisions : type de barrière (). | F38: =IF(F37<>0,"A",0) -> 0
A39: PC | B39: Fournir une fiche de description des observations de terrain, leur localisation sur un plan et les analyses complémentaires Vérification de l'adéquation entre le plan des sols et le plan de plantation | F39: =IF(F5<>0,"A",0) -> 0
A42: Travaux de plantation des arbres et arbustes | F42: =IF(MAX(F44:F78)<>0,"A",0) -> 0
B44: Fournitures des plantes | F44: =IF(SUM(F45:F48)<>0,"A",0) -> 0
B45: Arbres | C45: UNITE | F45: =E45*D45 -> 0.00 €
B46: Précisions (). | F46: =IF(F45<>0,"A",0) -> 0
B47: Arbustes | C47: UNITE | F47: =E47*D47 -> 0.00 €
B48: Précisions (). | F48: =IF(F47<>0,"A",0) -> 0
A49: PC | B49: Vérification de la quantité et de la qualité des plants lors de leur réception, ainsi que leur état sanitaire | F49: =IF(F44<>0,"A",0) -> 0
B50: Plantation des arbres et arbustes | F50: =IF(SUM(F52:F67)<>0,"A",0) -> 0
A51: PC | B51: Contrôle du sol : propreté du sol ; travail du sol ; texture adaptée ; apports éventuels ; mise en forme ; taille des fosses | F51: =IF(F50<>0,"A",0) -> 0
B52: Apport d'amendements | C52: m² | F52: =E52*D52 -> 0.00 €
B53: Étapes : diagnostic ; épandage de l'amendement selon son type. Précisions : type d'amendement () fourni ; dosage de () g par m². | F53: =IF(F52<>0,"A",0) -> 0
B54: Apport d'engrais | C54: m² | F54: =E54*D54 -> 0.00 €
B55: Étapes : diagnostic ; épandage d'engrais selon son type. Précisions : type d'engrais () fourni ; dosage de () g par m². | F55: =IF(F54<>0,"A",0) -> 0
B56: Mise en œuvre des arbres | C56: UNITE | F56: =E56*D56 -> 0.00 €
B57: Étapes : ouverture du trou de plantation, taille éventuelle, installation des arbres, remise en place et tassement léger du support de plantation, plombage, réalisation de la cuvette d’arrosage, nettoyage des abords. | F57: =IF(F56<>0,"A",0) -> 0
A58: PC | B58: Concordance avec le plan de projet Vérification de la profondeur d'enracinement, de l'état général du sol, de la bonne implantation, de la stabilité de l'arbre Constat de plantation et contractualisation de la garantie de reprise | F58: =IF(F56<>0,"A",0) -> 0
B59: Mise en œuvre des arbustes | C59: UNITE | F59: =E59*D59 -> 0.00 €
B60: Étapes : ouverture du trou de plantation, taille éventuelle, installation des arbustes, remise en place et tassement léger du support de plantation, plombage, réalisation de la cuvette d’arrosage, nettoyage des abords. | F60: =IF(F59<>0,"A",0) -> 0
A61: PC | B61: Concordance avec le plan de projet Vérification de la profondeur d'enracinement, de l'état général du sol, de la bonne implantation, de la stabilité de l'arbuste Constat de plantation et contractualisation de la garantie de reprise | F61: =IF(F59<>0,"A",0) -> 0
B62: Drain des fosses de plantation | C62: UNITE | F62: =E62*D62 -> 0.00 €
B63: Étapes : fourniture et mise en place du drain. Précisions : drain agricole de diamètre () et longueur () cm ; bouchon inclus. | F63: =IF(F62<>0,"A",0) -> 0
B64: Sondes tensio-métriques | C64: FORFAIT | F64: =E64*D64 -> 0.00 €
B65: Étapes : fourniture et mise en place de sondes tensio-métriques. Précisions : type de sonde () ; nombre () ; indiquer leur localisation, par arbre. | F65: =IF(F64<>0,"A",0) -> 0
B66: Paillage | C66: m² | F66: =E66*D66 -> 0.00 €
B67: Étapes : fourniture et mise en place du paillis. Précisions : paillis de type () ; sur une épaisseur de () cm. | F67: =IF(F66<>0,"A",0) -> 0
A68: PC | B68: Vérification de l'épaisseur du paillis et de son adaptation au projet | F68: =IF(F66<>0,"A",0) -> 0
B69: IMPORTANT : un entretien doit être proposé après la plantation pour garantir le bon développement des végétaux (cf. outil d'aide à la réalsiation de devis sur l'entretien) | F69: =IF(F50<>0,"A",0) -> 0
B70: Tuteurs et systèmes de protection | F70: =IF(SUM(F71:F78)<>0,"A",0) -> 0
B71: Tuteurage | C71: UNITE | F71: =E71*D71 -> 0.00 €
B72: Étapes : fourniture et mise en place des tuteurs. Précisions : tuteur de type () en matériaux () ; diamètre () et longueur () ; type d'attaches (). | F72: =IF(F71<>0,"A",0) -> 0
B73: Haubanage | C73: UNITE | F73: =E73*D73 -> 0.00 €
B74: Étapes : fourniture et mise en place des haubans. Précisions : type et matériaux des câbles, ancrages et attaches () ; diamètre () et longueur () des câbles ; nombre de haubans (). | F74: =IF(F73<>0,"A",0) -> 0
B75: Ancrage de motte | C75: UNITE | F75: =E75*D75 -> 0.00 €
B76: Étapes : fourniture et mise en place de l'ancrage de motte. Précisions : ancrage de type () ; nombre de points d'ancrage () ; section de l'ancrage (). | F76: =IF(F75<>0,"A",0) -> 0
B77: Protection du tronc | C77: UNITE | F77: =E77*D77 -> 0.00 €
B78: Étapes : diagnostic ; mise en place de la protection du tronc ; suivi et entretien du dispositif de protection. Précisions : type de protection (). | F78: =IF(F77<>0,"A",0) -> 0
A79: PC | B79: Vérification de la solidité des ancrages des tuteurs/haubans/ancrages de mottes | F79: =IF(SUM(F71:F76)<>0,"A",0) -> 0
A82: Travaux de plantation des massifs | F82: =IF(MAX(F84:F124)<>0,"A",0) -> 0
B84: Fournitures des végétaux | F84: =IF(SUM(F85:F88)<>0,"A",0) -> 0
B85: Arbres et arbustes | C85: UNITE | F85: =E85*D85 -> 0.00 €
B86: Précisions (). | F86: =IF(F85<>0,"A",0) -> 0
B87: Plantes | C87: UNITE | F87: =E87*D87 -> 0.00 €
B88: Précisions (). | F88: =IF(F87<>0,"A",0) -> 0
A89: PC | B89: Vérification de la quantité et de la qualité des plants lors de leur réception | F89: =IF(F84<>0,"A",0) -> 0
B90: Plantation des végétaux | F90: =IF(SUM(F91:F114)<>0,"A",0) -> 0
B91: Bêchage du sol | C91: m² | F91: =E91*D91 -> 0.00 €
B92: Étapes : bêchage du sol ; nivellement. Précisions : sur 10 à 30 cm ; à éviter sur sol battant. | F92: =IF(F91<>0,"A",0) -> 0
B93: Désherbage manuel | C93: m² | F93: =E93*D93 -> 0.00 €
B94: Étapes : désherbage manuel ; évacuation des plantes adventices. | F94: =IF(F93<>0,"A",0) -> 0
B95: Désherbage chimique | C95: m² | F95: =E95*D95 -> 0.00 €
B96: Étapes : désherbage chimique. Précisions : type de matériel utilisé () ; type de produit utilisé (). | F96: =IF(F95<>0,"A",0) -> 0
A97: PC | B97: Utilisation des produits selon les préconisations des fournisseurs (archivées) Application de produits par un personnel formé | F97: =IF(F95<>0,"A",0) -> 0
B98: Apport d'amendements | C98: m² | F98: =E98*D98 -> 0.00 €
B99: Étapes : diagnostic ; épandage de l'amendement selon son type. Précisions : type d'amendement () fourni ; dosage de () g par m². | F99: =IF(F98<>0,"A",0) -> 0
B100: Apport d'engrais | C100: m² | F100: =E100*D100 -> 0.00 €
B101: Étapes : diagnostic ; épandage d'engrais selon son type. Précisions : type d'engrais () fourni ; dosage de () g par m². | F101: =IF(F100<>0,"A",0) -> 0
B102: Mise en œuvre des arbustes | C102: UNITE | F102: =E102*D102 -> 0.00 €
B103: Étapes : ouverture du trou de plantation, taille éventuelle, installation des arbustes, remise en place et tassement léger du support de plantation, plombage, réalisation de la cuvette d’arrosage, nettoyage des abords. | F103: =IF(F102<>0,"A",0) -> 0
A104: PC | B104: Concordance avec le plan de projet Vérification de la profondeur d'enracinement, de l'état général du sol, de la bonne implantation, de la stabilité de l'arbuste Vérification de la densité de plantation Constat de plantation et contractualisation de la garantie de reprise | F104: =IF(F102<>0,"A",0) -> 0
B105: Plantation des plantes vivaces et couvre sol | C105: UNITE | F105: =E105*D105 -> 0.00 €
B106: Étapes : ouverture du trou de plantation au transplantoir, mise en place, arrosage, nettoyage des abords, nivellement au rateau. | F106: =IF(F105<>0,"A",0) -> 0
A107: PC | B107: Concordance avec le plan de projet Prise en compte des spécificités relatives aux massifs composés (concurrence pour l'eau, zones ombragées) Vérification de la bonne liaison terre-système racinaire Constat de plantation et contractualisation de la garantie de reprise | F107: =IF(F105<>0,"A",0) -> 0
B108: Sondes tensio-métriques | C108: FORFAIT | F108: =E108*D108 -> 0.00 €
B109: Étapes : fourniture et mise en place de sondes tensio-métriques. Précisions : type de sonde () ; nombre () ; indiquer leur localisation, par arbre. | F109: =IF(F108<>0,"A",0) -> 0
B110: Paillage | C110: m² | F110: =E110*D110 -> 0.00 €
B111: Étapes : fourniture et mise en place du paillis. Précisions : paillis de type () ; sur une épaisseur de () cm. | F111: =IF(F110<>0,"A",0) -> 0
A112: PC | B112: Vérification de l'épaisseur du paillis et de son adaptation au projet | F112: =IF(F110<>0,"A",0) -> 0
B113: Délimitation des massifs | C113: ml | F113: =E113*D113 -> 0.00 €
B114: Étapes : fourniture et mise en place de bordures. Précisions : bordure de type (). | F114: =IF(F113<>0,"A",0) -> 0
B115: IMPORTANT : un entretien doit être proposé après la plantation pour garantir le bon développement des végétaux (cf. outil d'aide à la réalsiation de devis sur l'entretien) | F115: =IF(F90<>0,"A",0) -> 0
B116: Tuteurs et supports | F116: =IF(SUM(F117:F124)<>0,"A",0) -> 0
B117: Tuteurage | C117: UNITE | F117: =E117*D117 -> 0.00 €
B118: Étapes : fourniture et mise en place des tuteurs. Précisions : tuteur de type () en matériaux () ; diamètre () et longueur () ; type d'attaches (). | F118: =IF(F117<>0,"A",0) -> 0
B119: Haubanage | C119: UNITE | F119: =E119*D119 -> 0.00 €
B120: Étapes : fourniture et mise en place des haubans. Précisions : type et matériaux des câbles, ancrages et attaches () ; diamètre () et longueur () des câbles ; nombre de haubans (). | F120: =IF(F119<>0,"A",0) -> 0
B121: Ancrage de motte | C121: UNITE | F121: =E121*D121 -> 0.00 €
B122: Étapes : fourniture et mise en place de l'ancrage de motte. Précisions : ancrage de type () ; nombre de points d'ancrage () ; section de l'ancrage (). | F122: =IF(F121<>0,"A",0) -> 0
B123: Supports de plantes grimpantes | C123: UNITE | F123: =E123*D123 -> 0.00 €
B124: Étapes : fourniture et mise en place des supports. Précisions : supports de type () en matériaux () ; dimentions () ; type d'attaches (). | F124: =IF(F123<>0,"A",0) -> 0
A125: PC | B125: Vérification de la solidité des ancrages des tuteurs/haubans/ancrages de mottes | F125: =IF(SUM(F117:F122)<>0,"A",0) -> 0
A128: Travaux de mise en œuvre des gazons | F128: =IF(MAX(F131:F151)<>0,"A",0) -> 0
A130: PC | B130: Évaluation de la qualité des sols et de la planéité Vérification de la quantité et de la qualité des végétaux lors de leur réception, ainsi que leur état sanitaire | F130: =IF(F128<>0,"A",0) -> 0
B131: Préparation du sol | C131: m² | F131: =E131*D131 -> 0.00 €
B132: Étapes : réalisation d'un décompactage ; émiettage des mottes ; nivellement. Précisions : type de matériel utilisé () ; épaisseur du décompactage () cm. | F132: =IF(F131<>0,"A",0) -> 0
B133: Désherbage manuel | C133: m² | F133: =E133*D133 -> 0.00 €
B134: Étapes : désherbage manuel ; évacuation des plantes adventices. | F134: =IF(F133<>0,"A",0) -> 0
B135: Désherbage chimique | C135: m² | F135: =E135*D135 -> 0.00 €
B136: Étapes : désherbage chimique. Précisions : type de matériel utilisé () ; type de produit utilisé (). | F136: =IF(F135<>0,"A",0) -> 0
A137: PC | B137: Utilisation des produits selon les préconisations des fournisseurs (archivées) Application de produits par un personnel formé | F137: =IF(F135<>0,"A",0) -> 0
B138: Apport d'amendements | C138: m² | F138: =E138*D138 -> 0.00 €
B139: Étapes : diagnostic ; épandage de l'amendement selon son type. Précisions : type d'amendement () fourni ; dosage de () g par m². | F139: =IF(F138<>0,"A",0) -> 0
B140: Apport d'engrais | C140: m² | F140: =E140*D140 -> 0.00 €
B141: Étapes : diagnostic ; épandage d'engrais selon son type. Précisions : type d'engrais () fourni ; dosage de () g par m². | F141: =IF(F140<>0,"A",0) -> 0
B142: Engazonnement par semis | C142: m² | F142: =E142*D142 -> 0.00 €
B143: Étapes : semis manuel/mécanique en deux passages perpendicaulaires ; réalisation d'un filet sur les contours ; enfouissement ; roulage ; arrosage. Précisions : dose de semis () g/m² ; matériel utilisé (). | F143: =IF(F142<>0,"A",0) -> 0
A144: PC | B144: Vérification de : l'homogénéité de l'installation du gazon ; la hauteur du sol en bordure de pelouse ; l'absence de carence | F144: =IF(F142<>0,"A",0) -> 0
B145: Engazonnement par placage | C145: m² | F145: =E145*D145 -> 0.00 €
B146: Étapes : pose manuelle/mécanique des rouleaux ; ajustement des bords ; roulage ; arrosage. Précisions : matériel utilisé () ; sur sol stable, plan et humide. | F146: =IF(F145<>0,"A",0) -> 0
A147: PC | B147: Vérification de : l'absence de desséchement/rétractation ; l'absence de joints apparents ; le bon enracinement des plaques | F147: =IF(F145<>0,"A",0) -> 0
B148: Engazonnement par bouturage | C148: m² | F148: =E148*D148 -> 0.00 €
B149: Étapes : plantation de mottes/boutures en vrac ; roulage ; arrosage. Précisions : type de gazon () ; sur sol stable et plan. | F149: =IF(F148<>0,"A",0) -> 0
B150: Semis de regarnissage | C150: m² | F150: =E150*D150 -> 0.00 €
B151: Étapes : scarification superficielle manuelle ; sursemis ; roulage ; arrosage. Précisions : après la 1re tonte ; dose de semis () g/m² ; matériel utilisé (). | F151: =IF(F150<>0,"A",0) -> 0
A154: Travaux de mise en œuvre des systèmes d'arrosage | F154: =IF(MAX(F156:F190)<>0,"A",0) -> 0
B156: Implantation et piquetage | C156: FORFAIT | F156: =E156*D156 -> 0.00 €
B157: Étapes : piquetage ; matérialisation des tranchées ; établissement des plans d'exécution définitifs. | F157: =IF(F156<>0,"A",0) -> 0
A158: PC | B158: Vérification de la correspondance au plan d'exécution | F158: =IF(F156<>0,"A",0) -> 0
B159: Branchement sur la source d'eau | C159: UNITE | F159: =E159*D159 -> 0.00 €
B160: Étapes : fourniture et pose d'une vanne de sectionnement et des éléments de branchement ; raccordements. Précisions : nombre () et type () pour chaque élément ; raccordements de type (). | F160: =IF(F159<>0,"A",0) -> 0
B161: Ouverture de tranchées | C161: ml / mᵌ | F161: =E161*D161 -> 0.00 €
B162: Étapes : ouverture de tranchées manuelle/mécanique ; gestion des déblais ; fourniture et mise en place du lit de pose. Précisions : matériel utilisé () ; largeur () et profondeur () de la tranchée ; lit de pose de 10 cm en terre fine compactée/sable. | F162: =IF(F161<>0,"A",0) -> 0
A163: PC | B163: Contrôle de la bonne profondeur des tranchées | F163: =IF(F161<>0,"A",0) -> 0
B164: Fourreau | C164: ml | F164: =E164*D164 -> 0.00 €
B165: Étapes : fourniture et pose d'un fourreau en tranchée ouverte et raccordement. Précisions : type de fourreau () et diamètre (). | F165: =IF(F164<>0,"A",0) -> 0
B166: Pose des conduites/canalisations | C166: ml | F166: =E166*D166 -> 0.00 €
B167: Étapes : fourniture et pose des conduites en tranchées ouverte et raccordements. Précisions : conduites en polyéthylène/PVC ; diamètre des tuyaux () mm pour une pression de service de () bars ; raccordements de type (). | F167: =IF(F166<>0,"A",0) -> 0
B168: Pose des éléments de fontainerie et de robinetterie | C168: UNITE | F168: =E168*D168 -> 0.00 €
B169: Étapes : fourniture et pose des éléments et raccordements. Précisions : nombre () et type () d'éléments ; raccordements de type (). | F169: =IF(F168<>0,"A",0) -> 0
B170: Fermeture des tranchées/fouilles | C170: ml / mᵌ | F170: =E170*D170 -> 0.00 €
B171: Étapes : fourniture et mise en place d'un enrobage adapté des tuyaux jusqu'à 15 cm au-dessus de la génératrice supérieure ; fourniture et pose d'un grillage avertisseur ; remblaiement et compactage par couche de 20 cm d'épaisseur. Précisions : type de remblai d'enrobage () ; dimension () et couleur () du filet avertisseur ; type de remblai extrait/d'apport (). | F171: =IF(F170<>0,"A",0) -> 0
B172: Pose des électrovannes | C172: UNITE | F172: =E172*D172 -> 0.00 €
B173: Étapes : purge des réseaux primaires ; fourniture et pose d'électrovannes, avec raccords unions démontables et vanne d'arrêt à purge ; filtre/régulateur de pression/nourrice ; raccordements. Précisions : nombre () et type () pour chaque élément ; raccordements de type (). | F173: =IF(F172<>0,"A",0) -> 0
A174: PC | B174: Vérifier le bon fonctionnement des électrovannes Vérifier la conformité des connexions électriques étanches et l'étanchéité des pièces de montage S'assurer de ne pas dépasser le nombre maximum d'électrovannes par regard | F174: =IF(F172<>0,"A",0) -> 0
B175: Pose des regards de visite | C175: UNITE | F175: =E175*D175 -> 0.00 €
B176: Étapes : fourniture et pose du regard ; mise en place d'un géotextile ; pose d'un lit de gravier de 5 cm au fond du regard ; rebouchage par couches successives. Précisions : regard de visite de type () et dimensions () ; raccordements de type () ; gravier de type (). | F176: =IF(F175<>0,"A",0) -> 0
B177: Pose des arroseurs | C177: UNITE | F177: =E177*D177 -> 0.00 €
B178: Étapes : purge des réseaux secondaires ; fourniture et pose des arroseurs ; montage déporté/articulé ; réglage. Précisions : arroseur de type (). | F178: =IF(F177<>0,"A",0) -> 0
A179: PC | B179: Vérifier : la mise à niveau de l'arroseur en fonctionnement et qu'il ne dépasse pas le niveau du sol fini Contrôler l'homogénéité de l'arrosage, la bonne répartition des arroseurs et leur pression réelle | F179: =IF(F177<>0,"A",0) -> 0
B180: Pose des systèmes de goutte-à-goutte | C180: ml/m² | F180: =E180*D180 -> 0.00 €
B181: Étapes : fourniture et pose de goutte-à-goutte () en surface/enfouis ; raccordements ; installation de crampons de sol. Précisions : raccordements de type () ; matériel utilisé (). | F181: =IF(F180<>0,"A",0) -> 0
A182: PC | B182: Vérifier : la conformité du débit mesuré au débit annoncé ; l'absence d'écart de débit supérieur à 10 % entre deux goutteurs Contrôler l'espacement entre les lignes et les goutteurs | F182: =IF(F180<>0,"A",0) -> 0
B183: Mise en œuvre des matériels électriques | F183: =IF(SUM(F184:F185)<>0,"A",0) -> 0
B184: Étapes : fourniture et pose de câbles d'alimentation ; connexions. Précisions : type de câbles () ; nombre de brins et section (). | C184: ml | F184: =E184*D184 -> 0.00 €
B185: Étapes : fourniture et pose d'un programmateur ; raccordement au réseau basse tension protégé ; programmation. Précisions : programmateur de type () ; type de câble (). | C185: UNITE | F185: =E185*D185 -> 0.00 €
A186: PC | B186: Vérification de l'installation électrique et du programmateur Vérification de l'ouverture/fermeture des électrovannes à partir du programmateur | F186: =IF(F183<>0,"A",0) -> 0
B187: Mise en œuvre d'appareils d'aide à la gestion | F187: =IF(SUM(F188:F190)<>0,"A",0) -> 0
B188: Étapes : fourniture et pose d'un pluviomètre ; raccordement au programmateur. Précision : pluviomètre de type () ; câbles de type (). | C188: UNITE | F188: =E188*D188 -> 0.00 €
B189: Étapes : fourniture et pose d'un sonde d'humidité ; raccordement au programmateur ; réglages. Précision : sonde de type () ; câbles de type (). | C189: UNITE | F189: =E189*D189 -> 0.00 €
B190: Étapes : fourniture et pose d'une station météo ; raccordement au programmateur ; réglages. Précision : station de type () ; câbles de type (). | C190: UNITE | F190: =E190*D190 -> 0.00 €
A193: Travaux de terrassements des aménagements paysagers | F193: =IF(MAX(F195:F303)<>0,"A",0) -> 0
B195: Préparation du chantier | F195: =IF(SUM(F196:F223)<>0,"A",0) -> 0
B196: Cartographie des sols en place | C196: FORFAIT | F196: =E196*D196 -> 0.00 €
B197: Étapes : réalisation des observations ; cartographie. Précisions : observations par tarière/fosse ; type de matériel utilisé (). | F197: =IF(F196<>0,"A",0) -> 0
B198: Caractérisation des sols en place | C198: UNITE | F198: =E198*D198 -> 0.00 €
B199: Étapes : analyse par bureau d'étude. Précisions : types de caractéristiques analysés () ; laboratoire (). | F199: =IF(F198<>0,"A",0) -> 0
B200: Traitement des terres polluées | C200: Tonne | F200: =E200*D200 -> 0.00 €
B201: Étapes : évacuation des terres polluées comme déchets dangereux ; traitement en décharge agréée (raison sociale, adresse et type d'installation). Précisions : matériel utilisé () ; benne de volume (). | F201: =IF(F200<>0,"A",0) -> 0
B202: Panneau d'affichage de chantier | C202: UNITE | F202: =E202*D202 -> 0.00 €
B203: Étapes : fourniture et pose du panneau. Précisions : dimensions du panneau () cm. | F203: =IF(F202<>0,"A",0) -> 0
B204: Signalisation temporaire - panneaux | C204: ml/J/unit | F204: =E204*D204 -> 0.00 €
B205: Étapes : fourniture et mise en place de panneaux ; dépose. Précisions : type de panneaux () et nombre (). | F205: =IF(F204<>0,"A",0) -> 0
B206: Signalisation temporaire - séparateurs | C206: ml/J/unit | F206: =E206*D206 -> 0.00 €
B207: Étapes : fourniture et mise en place d'éléments séparateurs ; dépose. Précisions : type d'éléments () et nombre (). | F207: =IF(F206<>0,"A",0) -> 0
B208: Clôture provisoire | C208: ml/J | F208: =E208*D208 -> 0.00 €
B209: Étapes : fourniture et mise en place des constituants de clôture ; dépose. Précisions : clôture de type () et de dimensions () m. | F209: =IF(F208<>0,"A",0) -> 0
B210: Signalisation routière temporaire | C210: JOURNEE | F210: =E210*D210 -> 0.00 €
B211: Étapes : fourniture et mise en place d'un dispositif de signalisation temporaire manuel/automatique. Précisions : dispositif de type (). | F211: =IF(F210<>0,"A",0) -> 0
A212: PC | B212: Contrôle du respect des normes de sécurité | F212: =IF(F210<>0,"A",0) -> 0
B213: Visite préalable | C213: FORFAIT | F213: =E213*D213 -> 0.00 €
B214: Étapes : visite préalabe ; état des lieux ; plan d'installation. | F214: =IF(F213<>0,"A",0) -> 0
B215: Sondage | C215: 1/2 journée | F215: =E215*D215 -> 0.00 €
B216: Étapes : mise à disposition du matériel , sondage. Précision : matériel utilisé () ; encadrement de l'équipe non compris. | F216: =IF(F215<>0,"A",0) -> 0
B217: Voiries provisoires et accès | C217: m² | F217: =E217*D217 -> 0.00 €
B218: Étapes : décapage ; mise en œuvre d'une forme drainante ; mise en œuvre d'une couche de forme. Précisions : type de matériaux () et épaisseur () ; stockage des matériaux décapés compris. | F218: =IF(F217<>0,"A",0) -> 0
... 323 more rows

Sheet Devis final
A1: Nom de l’entreprise du paysage Forme sociale et capital de la société Numéro siren et Greffe de rattachement Siège social N° de TVA intracommunautaire Téléphone / Fax Email
A9: DEVIS
C10: Identification du client (nom, adresse) Nom de l’interlocuteur Numéro de TVA Intracommunautaire (si professionnel) Date et lieu d’émission du devis
A15: Référence du dossier Numéro du devis Numéro du client Nom de l’interlocuteur dans l’entreprise du paysage (obligatoire si Qualicert) Adresse du lieu d’intervention (A préciser) Période de validité du devis à compter de sa date d’émission (A préciser) Devis payant : montant (si c’est le cas) (Si client particulier) Rappel : Le vendeur remet gratuitement un devis personnalisé au consommateur à qui il propose une prestation ou un ensemble de prestations dont le prix total est supérieur ou égal à 100 € TTC ou au consommateur qui lui en fait la demande.
A28: Intitulé exacte de la prestation : Exemples : 1/ – Pose d’un portail en aluminium (référence XXXXX ) blanc (référence XXXXX) - mesures - avec réalisation des opérations suivantes : ragréage, pose d’une dalle, pose des poteaux, fourniture du portail et des matériaux….., (NB : si portail acheté sur catalogue, joindre au dossier la photo et référence du portail signé par le client). 2/ – Pose d’un portail en aluminium - mesures - avec réalisation des opérations suivantes : ragréage, pose d’une dalle, pose des poteaux, sans fourniture du portail…. - La pose du portail se fait sous réserve de la fourniture de la notice de montage
G30: =MATCH("LIMITE",A1:A899,0) -> 32
A31: N° | B31: Désignation | C31: Unité | D31: Quantité | E31: PU HT | F31: Montant HT | G31: Taux TVA
A32: LIMITE
E34: Base HT | F34: Taux TVA | G34: Montant TVA
E35: 0.00 | F35: 20.0% | G35: =E35+(E35*F35) -> 0.00 €
E36: 0.00 | F36: 10.0% | G36: =E36+(E36*F36) -> 0.00 €
E37: 0.00 | F37: 5.5% | G37: =E37+(E37*F37) -> 0.00 €
E38: 0.00 | F38: 0.0% | G38: 0.00 €
F40: Total HT | G40: =SUM(E35:E38) -> 0.00 €
F41: Total TVA | G41: =SUM(G35:G38) -> 0.00 €
F42: Total TTC | G42: =G41+G40 -> 0.00 €
E44: Net à payer en EUROS | G44: =G42 -> 0.00 €
A46: Conditions de vente / livraison / prestation de services : (À préciser) - Modalités et modes de paiement : Paiement possible par : Chèque, carte de paiement, prélèvement, virement, titre interbancaire de paiement (A définir). Il est possible de prévoir : un acompte et/ou un versement à chaque étape de la prestation. En cas d’acompte par exemple : 30 % de la somme TTC totale sera versée par le client à la signature du présent devis. A défaut, l’entreprise du paysage ne débutera pas ses prestations. L’acompte, n’étant pas une possibilité de dédit, ne pourra jamais faire l’objet d’un remboursement. - Escompte pour paiement anticipé : (si pas d’escompte indiquer néant) – ne concerne que les professionnel). - Date de paiement : (A préciser) - Pénalités de retard : % des pénalités + 40 € au titre des frais de recouvrement (uniquement entre professionnels) - Garanties : exemple : reprise des végétaux - Nature et durée - Assurances : Nature et durée (A préciser) exemple : « Assurance décennale obligatoire souscrite auprès de …………………… (nom de de l’assureur) ………………………………………………………. (adresse postale), téléphone : ………………………, valable en (secteur géographique couvert) ». - Le présent devis est réalisé sous réserve des constatations qui seront réalisées lors de la mise en œuvre des prestations. En cas de nécessité de modification des prestations, l’entreprise du paysage en informera son client, pour formaliser un nouveau devis. Les travaux seront suspendus pendant cette période de préparation de ce nouveau devis. - Tout plan et étude remis dans le cadre des échanges entre l’entreprise du paysage et son client / prospect ne pourront être exploités, divulgués ou reproduits, en partie ou en totalité, que par l’entreprise du paysage émettrice desdits documents. A défaut, le client / prospect s’engage à verser une indemnité pour toute utilisation totale ou partiel des documents équivalente à 20% du montant TTC du devis de l’entreprise du paysage liés aux plans ou études produits. A défaut de devis, l’entreprise du paysage transmettra une facture basée sur le coût horaire. La signature du présent devis vaut acceptation des conditions générales figurant au dos et qui sont signées par l’entreprise du paysage et son client. Signature de l’entreprise du paysage Signature du client professionnel Date Bon pour accord Ou Signature de l’entreprise du paysage Signature du client particulier Devis reçu avant l’exécution des travaux* Date* Bon pour accord* * mentions manuscrites obligatoires
A96: CONDITIONS GÉNÉRALES DE VENTE ET DE PRESTATION DE SERVICES
A97: Le présent contrat est conclu entre un professionnel ………….………………….............................................................................................…… sis ……. rue …………………....................................................... ville …...............…...… immatriculé au RCS de .…..…............... sous le numéro ……..….............................. ou un consommateur M. ou Mme ………....................................…… domicilié(e) au ……..… rue ……………………….........................................…… ville ………….............. ayant passé la commande (ci-après « le CLIENT ») et …………………………………………….………………................................................. sis …… rue ………………………………………………….....… ville ............................. immatriculée au RCS de …….....……… sous le numéro ……….......……………… (ci-après « le Prestataire »). Les présentes conditions générales (CGV) s’appliquent à tous les contrats de ventes de produits et de prestations de services d’aménagement paysagers conclus et/ou exécutés par le prestataire, en France. Elles remplacent et annulent les conditions générales dont la date d’édition est antérieure et seront remplacées par toute édition postérieure. Les parties conviennent que leurs relations seront exclusivement régies par les présentes, quelles que soit les clauses pouvant figurer sur les documents du client, et notamment ses conditions générales d’achat. Toute modification des présentes conditions générales souhaitée par le CLIENT doit faire l’objet d’une demande écrite de sa part au plus tard lors de l’acceptation du devis et doit en outre être acceptée par le prestataire par écrit pour pouvoir lui être opposable. En cas de conflit entre les présentes conditions générales et les conditions particulières portées sur les devis ou tout autre document accepté par les deux parties, les conditions particulières primeront. 1) Loi applicable – Tribunaux compétents Le présent contrat et les opérations qui en découlent sont soumis à la loi française. Les CGV sont rédigées en langue française. Dans le cas où elles seraient traduites en une ou plusieurs langues, seul le texte français ferait foi en cas de litige. Pour les clients professionnels, il est convenu que le tribunal du lieu du siège social de la société prestataire sera seul compétent en cas de litiges auxquels le présent contrat pourrait donner lieu, concernant tant sa validité, son interprétation, son exécution, sa résiliation, leurs conséquences et leurs suites. Pour les CLIENTS consommateurs, les litiges qui n’auraient pas pu être résolus à l’amiable seront soumis aux tribunaux compétents dans les conditions de droit commun. 2) Devis Le prestataire établit un devis écrit répondant au besoin formulé par le CLIENT. Le devis est élaboré gratuitement sauf lorsque le CLIENT aura été informé préalablement à son élaboration que celui-ci est payant. Sauf indication contraire dans le devis, celui-ci : - est valable . . . . . mois à compter de la date de son établissement par le prestataire et n’inclut que les prestations et produits qui y sont décrits. - est établi sur la base du taux de TVA applicable au moment de la signature ; toute variation de ce taux découlant des dispositions législatives ou règlementaires à venir sera répercutée au CLIENT.. - n’inclut pas les prestations préparatoires et accessoires aux prestations et produits décrits telles que les études, analyses des sols, etc. - s’entend pour l’exécution des travaux qui y sont décrits dans des conditions normales, à l’exclusion de prestations imposées par des conditions imprévues (nécessité de briser des enrochements, de dépolluer des sols, etc.) - n’inclut pas les demandes d’autorisation exigées par des règles d’urbanisme ou des règlements de copropriété ou enfin par mesure de sécurité. Il appartient donc au CLIENT de s’informer et de réaliser toute formalité pour obtenir les autorisations, sous sa seule responsabilité. 3) Commande – Formation du contrat Le contrat est définitivement formé dès l’acceptation, sans réserve ni modification, du devis par le CLIENT. Toute demande de modification d’un devis, faite par observation sur celui-ci ou par tout autre moyen, constituera un obstacle à la formation du contrat sur la base du devis modifié et donnera lieu à l’établissement, par le prestataire, d’un devis modificatif. Le contrat ne sera alors valablement formé que si le devis modificatif est accepté par le CLIENT. L’acceptation du devis se matérialise par la signature du CLIENT. 4) Remise des plans Avant l’exécution des travaux, le CLIENT s’engage à remettre au prestataire les plans des réseaux et des ouvrages enterrés. Pour tout dégât causé aux dits réseaux ou ouvrages non ou mal signalés par le CLIENT, la responsabilité du prestataire ne pourra en aucun cas être engagée. | C97: 5) Prix - Facturation – Paiement 1. Les produits et services proposés par le prestataire sont fournis aux tarifs en vigueur selon le devis établi par lui. Les prix sont exprimés en euros, HT et TTC. 2. Sauf accord contraire dans le devis, un acompte de 30% du prix qui y est stipulé est versé par le CLIENT lors de l’acceptation de celui-ci. La commande ne recevra exécution qu’après l’encaissement de cette somme par le prestataire. En cas d’annulation de la commande par le CLIENT après son acceptation par le prestataire moins de ……. jours avant la date prévue pour la fourniture des services commandés, pour quelque raison que ce soit hormis la force majeure, l’acompte versé sera de plein droit acquis au prestataire et ne pourra donner lieu à un quelconque remboursement. Le solde du prix est payable à la réception des travaux ou à la livraison, à moins que les parties aient convenu dans le devis de toute autre modalité de paiement.Les paiements seront effectués par chèque, en espèce ou virement, sauf accord contraire dans le devis. Cependant les règlements ayant pour objet le paiement de tout ou partie d'une dette de plus de 1000 € TTC doivent être faits par chèque barré, virement ou carte de crédit ou de paiement (L112-6 code monétaire). 3. Conformément à l’article L.441-3 du code de commerce, les factures seront adressées au CLIENT PROFESSIONNEL au plus tard lors de la réception des travaux et/ou produits. 4. Entre professionnels, en cas de retard de paiement ou d’encaissement de tout ou partie du prix, un intérêt de retard égal au taux d’intérêt de la Banque Centrale Européenne majoré de 10 points de pourcentage sera dû sur la totalité des sommes TTC impayées dès la survenance de l’échéance figurant sur la facture et sans qu’une mise en demeure préalable ne soit nécessaire pour cela (article L. 441-6 du code de commerce). Tout retard de paiement entraîne en outre, de plein droit, sans qu’il soit besoin de mise en demeure : l’exigibilité de la totalité des créances du prestataire, même non échues, ainsi que le droit pour le prestataire de suspendre toutes les livraisons et tous les travaux en cours jusqu’à complet paiement et la possibilité pour le prestataire d’exiger un paiement intégral à la commande pour les affaires à venir. Entre les professionnels, le délai de règlement des sommes dues est fixé au 30ème jour suivant la date de réception des marchandises ou d’exécution de la prestation demandée (article L441-6 du code du commerce). Tout retard de paiement entrainera le paiement d’une indemnité forfaitaire de 40 euros pour frais de recouvrement. 5. Pour les CLIENTS PARTICULIERS/CONSOMMATEURS, conformément à l’article 1er de l’arrêté n°83-50A du 3 octobre 1983, le prestataire transmettra ou remettra au client une note reprenant les prestations réalisées et leur montant. 6) Réserve de propriété Tous les produits remis au CLIENT en exécution du contrat restent la propriété du prestataire jusqu’à complet encaissement de leur prix. Les risques (perte, vol, détérioration, etc.) relatifs aux dits produits sont cependant transférés au CLIENT dès leur livraison, de même que l’obligation de réparer les dommages qu’ils pourraient causer aux biens et aux personnes. 7) Délais d’exécution 1. Les retards ne pourront pas être invoqués par les clients professionnels pour justifier l’annulation de la commande ou pour ouvrir droit à des retenues sur le prix ou au paiement de dommages intérêts par le prestataire. 2. Conformément à l’article L.111-1 du code de la consommation, dans tout contrat ayant pour objet la vente d’un bien meuble ou la fourniture d’une prestation de service à un consommateur, le prestataire doit, lorsque la livraison de bien ou la fourniture de la prestation n’est pas immédiate, indiquer la date limite à laquelle il s’engage à livrer le bien ou à exécuter la prestation. A défaut d’indication, le prestataire livre le produit ou exécute la prestation sans retard injustifié et au plus tard 30 jours après la conclusion du contrat (article L.216-1 du Code de la consommation). Dans les conditions prévues à l’article L.216-2 du code de la consommation, les clients consommateurs pourront dénoncer le contrat dont le prix convenu en TTC excède les seuils fixés par voie réglementaire, par lettre recommandée avec accusé de réception ou par un écrit sur un autre support durable si, après avoir enjoint, selon les mêmes modalités, le prestataire d’effectuer la livraison ou de fournir le service dans un délai supplémentaire raisonnable, ce dernier ne s’est pas exécuté dans ce délai sauf cas de force majeure. Le contrat est considéré comme rompu à la réception par le prestataire de la lettre du consommateur l’informant de la dénonciation, à moins que la livraison soit intervenue entre l’envoi et la réception de la lettre. Les sommes versées par le CLIENT lui seront alors restituées au plus tard dans les 14 jours qui suivent la
A146: date de dénonciation du contrat, à l’exclusion de toute indemnisation ou retenue. 8) Réception des travaux et produits A défaut de stipulation contraire dans le devis, la prise de possession des travaux et/ou des produits vaut réception, les éventuelles réserves étant formulées comme suit. En l’absence de procès verbal de réception, les travaux et/ou produits sont présumés être conformes à défaut de réserve formulée par lettre recommandée avec accusé de réception dans un délai de 15 jours après la réception pour les travaux et 5 jours après la livraison pour les produits. En présence d’un procès verbal de réception, les travaux et/ou produits sont présumés être conformes, à défaut de réserve formulée sur ce document. 9) Responsabilité - Force majeure 1. Le prestataire est tenu d’une obligation de moyen et non de résultat, sauf lorsque cela est prévu par une disposition légale impérative. 2. En ce qui concerne la responsabilité du fait des produits défectueux, le prestataire ne pourra voir sa responsabilité engagée au titre des dommages causés aux biens qui ne sont pas utilisés par les clients professionnels principalement pour leur usage ou leur consommation privée (article 1386-15 du code civil). 3. Le prestataire sera exonéré de toute responsabilité lorsqu’il aura été empêché d’exécuter en tout ou partie ses obligations, notamment en matière de délais, en raison d’un cas de force majeur. Les parties conviennent que seront notamment assimilés à des cas de force majeure les intempéries, les catastrophes naturelles, les sécheresses, les inondations, les grèves ou le manque de main d’œuvre, sauf lorsque de telles assimilations sont interdites par des dispositions légales d’ordre public. 4. Pour garantir les conséquences pécuniaires d’une éventuelle mise en cause de sa responsabilité, le prestataire a souscrit une assurance dont les garanties et capitaux figurent sur l’attestation, dont il pourra sur simple demande du CLIENT lui en être remis un exemplaire. 5. Le CLIENT déclare avoir souscrit toutes assurances utiles pour couvrir tout sinistre direct et indirect pouvant affecter les biens. 10) Garanties légale et contractuelle 1. Le prestataire n’accorde aucune garantie contractuelle automatique 2. Cependant, les végétaux fournis et plantés par le prestataire peuvent faire l’objet d’une garantie contractuelle de reprise selon un prix à convenir entre les parties. Cette garantie s’applique jusqu’au 1er juillet de l’année civile suivant celle au cours de laquelle les végétaux ont été plantés. Cette garantie sera exclue : - si l’entretien à la charge du CLIENT n’a pas été correctement effectué, notamment l’arrosage, le bassinage, la vérification des tuteurs et des haubans, les traitements parasitaires, le désherbage des massifs, etc. - en cas de vandalisme, vol, gel, sécheresse, inondation, grêle, orage violent et neige, produits désherbants non-appropriés. - si les végétaux n’ont pas été fournis. 3. De plus, le CLIENT bénéficie de la garantie contractuelle éventuellement offerte par les fournisseurs des produits que le prestataire lui a vendus. 4. A l’égard des clients consommateurs, les produits fournis par le prestataire bénéficient de plein droit et sans paiement complémentaire, conformément aux dispositions légales ; – de la garantie légale de conformité pour les produits apparemment défectueux, abîmés ou endommagés ou ne correspondant pas à la commande, dans les conditions de l'article L. 217-4 et suivants du code de la consommation ; – de la garantie légale contre les vices cachés provenant d’un défaut de matière, de conception ou de fabrication affectant les produits livrés et les rendant impropres à leur utilisation, dans les conditions prévues aux articles 1641 et suivants du code civil. _______________________________________________________________ Pour agir en garantie légale de conformité, le CLIENT : - bénéficie d'un délai de deux ans à compter de la délivrance du produit pour agir ; - peut choisir entre la réparation ou le remplacement du produit, sous réserve des conditions de coût prévues par l'article L. 217-9 du code de la consommation ; - est dispensé de rapporter la preuve de l'existence du défaut de conformité du produit durant les vingt-quatre mois suivant la délivrance du Produit. La garantie légale de conformité s'applique indépendamment de la garantie commerciale éventuellement consentie. Pour la garantie des vices cachés, si le CLIENT décide de la mettre en œuvre, il peut choisir entre la résolution de la vente ou une réduction du prix de vente conformément à l'article 1644 du code civil. ______________________________________________________________ | C146: La responsabilité du prestataire ne saurait être engagée dans les cas suivants : - non-respect de la législation du pays dans lequel les produits sont livrés, qu’il appartient au client de vérifier ; – en cas de mauvaise utilisation, d’utilisation à des fins professionnelles, négligence ou défaut d’entretien de la part du CLIENT, comme en cas d’usure normale du produit, d’accident ou de force majeure. La garantie du prestataire est, en tout état de cause, limitée au remplacement ou au remboursement des produits non conformes ou affectés d’un vice. 6. Si le prestataire exécute des travaux entrant dans le cadre de l’article 1792 du code civil, ces travaux sont couverts par la garantie décennale. 11) Propriété intellectuelle 1. Le prestataire reste propriétaire de tous les droits de propriété intellectuelle sur les études, dessins, modèles, prototypes, etc., réalisés (même à la demande du CLIENT) en vue de la fourniture des services au CLIENT. 2. Le CLIENT s’interdit donc toute reproduction ou exploitation desdites études, dessins, modèles et prototypes, etc., sans l’autorisation expresse, écrite et préalable du prestataire qui peut la conditionner à une contrepartie financière. 12) Droit de rétractation 1. Pour les contrats conclus hors établissement tels que définis à l’article L 221-1 du Code de la Consommation (c’est-à-dire les contrats souscrits dans tout lieu où le prestataire n’exerce pas son activité habituelle ou s’il l’exerce, si le client a été sollicité dans un lieu différent, ou lors d’une excursion ayant pour but ou effet de promouvoir les biens et/ou services du prestataire) entre le prestataire et un CLIENT particulier consommateur, le CLIENT dispose, conformément à la loi, d'un délai de rétractation de 14 jours à compter de la conclusion du contrat ou de la réception du produit pour exercer son droit de rétractation auprès du prestataire et annuler sa commande, sans avoir à justifier de motifs ni à payer de pénalité, à fin d'échange ou de remboursement, sauf si l'exécution des prestations a commencé, avec l'accord du Client et est pleinement réalisée, avant la fin du délai de rétractation et à condition que les produits soient retournés dans leur emballage d’origine et en parfait état dans les 14 jours suivant la notification de la décision de rétractation du CLIENT. Le droit de rétractation peut être exercé à l'aide du formulaire type de rétractation accompagnant le contrat, auquel cas un accusé de réception sur un support durable sera immédiatement communiqué au CLIENT par le prestataire, ou de toute autre déclaration, dénuée d'ambiguïté, exprimant la volonté de se rétracter. En cas d'exercice du droit de rétractation dans le délai susvisé, seul le prix des services et/ou produits achetés et les frais de livraison sont remboursés. Les frais de retour sont à la charge du client, sauf si les produits sont livrés au moment de la conclusion du contrat et que ceux-ci ne peuvent pas être renvoyés normalement par voie postale en raison de leur nature. Le remboursement des sommes effectivement réglées par le CLIENT sera effectué dans un délai de 14 jours à compter de la réception des produits retournés ou pour une prestation de service, à compter de la réception, par le prestataire, de la notification de la rétractation du CLIENT. 2. Le droit de rétractation s’applique sous réserve des exceptions mentionnées à l’article L.221-28 du code de la consommation. 3. Dans le cas d’un contrat de prestation de services hors ceux visés à l’article L.221-28 du Code de la consommation, si le CLIENT a demandé de commencer la prestation pendant le délai de rétractation, il doit payer au PRESTATAIRE un montant proportionnel à ce qui lui a été fourni jusqu’au moment où il a informé le PRESTATAIRE de sa rétractation du présent contrat, par rapport à l’ensemble des prestations prévues par le contrat. 13) Information précontractuelle - Acceptation des CGV 1. Le CLIENT reconnaît avoir eu communication, préalablement à l’achat immédiat ou à la passation de sa commande, d’une manière claire et compréhensible, des présentes CGV et de toutes informations et renseignements visés aux articles L.111-1 et suivants du Code de la consommation et en particulier : - les caractéristiques essentielles du produit et/ou de la prestation de service ; - le prix des produits et/ou de la prestation de service et des frais annexes (livraison, par exemple) ; - en l’absence d’exécution immédiate du contrat, la date ou le délai auquel le prestataire s’engage à livrer le produit et/ou la prestation de service ; - les informations relatives à l’identité du prestataire, à ses coordonnées postales, téléphoniques et électroniques, et à ses activités, si elles ne ressortent pas du contexte ; - les informations relatives aux garanties légales et contractuelles et à leurs modalités de mise en œuvre ; - la possibilité de recourir à une médiation conventionnelle en cas de litige. 2. Le fait pour un CLIENT particulier ou professionnel d’effectuer un achat ou de commander un produit et/ou une prestation de services emporte adhésion et
A196: acceptation pleine et entière des présentes CGV, ce qui est expressément reconnu par le CLIENT. 14) Traitement des données La réalisation des obligations prévues par le contrat liant les parties et la gestion de sa relation « client » conduisent le Prestataire à collecter les données à caractère personnel de ses clients. Les informations recueillies vous concernant font l’objet d’un traitement sous la responsabilité de : Indiquer la dénomination de l’entreprise et les informations légales (adresse du siège social, numéro RCS et lieu d’immatriculation le cas échéant, forme et capital social pour les sociétés), et le cas échéant, le nom du représentant légal Les données personnelles que vous communiquez au Prestataire sont destinées à la gestion des demandes, devis et commandes et à la constitution d’un fichier clientèle à des fins de prospection commerciale. Ces informations pourront également être conservées aux fins de preuve dans le respect des obligations légales et réglementaires (paiement, garantie, litige …). Les données collectées sont susceptibles d’être conservées pendant toute la durée de la relation commerciale et pendant 3 ans après cette dernière pour permettre la prospection commerciale. Le prestataire ne communique vos données à caractère personnel qu’à des destinataires habilités et déterminés. Les destinataires de vos données à caractère personnel sont les services concernés du prestataire. Vous bénéficiez d’un droit d’accès, de rectification, de portabilité, d’effacement de celles-ci ou d’une limitation du traitement. Vous pouvez vous opposer au traitement des données vous concernant et disposez du droit de retirer votre consentement à tout moment en vous adressant à : | C196: Mentionner les coordonnées de l’entreprise (adresse mail, adresse postale). Vous disposez du droit d’introduire une réclamation auprès de la CNIL, 3 Place de Fontenoy - TSA 80715 - 75334 PARIS CEDEX 07, site Internet : www.cnil.fr 15) Réclamations => à ajuster si l’entreprise a choisi un autre médiateur de la consommation. En cas de conflit non résolu avec le PRESTATAIRE, le CLIENT consommateur peut formuler gratuitement ses réclamations auprès de l’Association des Médiateurs Européens http://www.mediationconso-ame.com (Médiation de la consommation AME, 11 Place Dauphine, 75001 Paris), dans les conditions prévues aux articles L.612-1 et suivants. En particulier, le CLIENT consommateur doit justifier avoir préalablement tenté de résoudre son litige directement auprès du PRESTATAIRE par une réclamation adressée par lettre recommandée avec accusé de réception. Le CLIENT dispose d’un délai d’un an à compter de sa réclamation écrite auprès du PRESTATAIRE pour introduire sa demande auprès du médiateur. Fait le : à : Signature du Client Signature et tampon du Prestataire :
A214: Modèle de formulaire de rétractation pour les contrats hors établissement UNIQUEMENT tels que prévus à l’article 12 Veuillez compléter et renvoyer le présent formulaire uniquement si vous souhaitez vous rétracter du contrat. À l'attention de [le professionnel insère ici son nom, son adresse géographique et, lorsqu'ils sont disponibles, son numéro de télécopieur et son adresse électronique] : Je/nous (*) vous notifie/notifions (*) par la présente ma/notre (*) rétractation du contrat portant sur la vente du bien (*)/pour la prestation de services (*) ci-dessous : Commandé le (*)/reçu le (*) : Nom du (des) consommateur(s) : Adresse du (des) consommateur(s) : Signature du (des) consommateur(s) (uniquement en cas de notification du présent formulaire sur papier) : […] » Date : (*) Rayez la mention inutile.

Sheet (aide - calcul de prix)
A1: Ce tableau vous permet de calculer vos prix selon la méthode décrite sur le site de l'Unep (suivez ce lien pour en savoir plus : http://www.lesentreprisesdupaysage.fr/base-documentaire/march%C3%A9s-priv%C3%A9s/savoir-calculer-ses-prix-unitaires). Une fois le calcul terminé, effacez les cases vertes pour réutiliser le tableau.
A2: ÉTUDE DE PRIX
B4: N° du prix : | E4: DÉSIGNATION DU PRIX : | I4: Affaire :
B6: Date : | E6: UNITÉ : | G6: Quantité :
B8: Date prévisionnelle de réalisation : | G8: Rendement journalier * :
E10: Coûts Directs HT | J10: DÉPENSES RÉALISÉES HT
A11: N° | B11: DÉSIGNATION | C11: Unité | D11: Quantité Durée d'utilisation | E11: Main d'œuvre PU | F11: Matériaux et fourniture PU | G11: Matériel PU | H11: TOTAL TRAVAUX PROPRES ** | I11: TOTAL TRAVAUX S/TRAITÉS | J11: Qté | K11: P.U | L11: TOTAL
A12: 1 | B12: Main d'œuvre
H13: =E13*D13 -> 0 | L13: =K13*J13 -> 0
H14: =E14*D14 -> 0 | L14: =K14*J14 -> 0
H15: 0 | L15: 0
H16: 0 | L16: 0
H17: 0 | L17: 0
H18: 0 | L18: 0
A19: 2 | B19: Matériaux et fournitures
H20: =F20*D20 -> 0 | L20: =K20*J20 -> 0
H21: =F21*D21 -> 0 | L21: =K21*J21 -> 0
H22: =F22*D22 -> 0 | L22: =K22*J22 -> 0
H23: =F23*D23 -> 0 | L23: =K23*J23 -> 0
A24: 3 | B24: Matériel
H25: =G25*D25 -> 0 | L25: 0
H26: 0 | L26: 0
H27: 0 | L27: 0
H28: 0 | L28: 0
H29: 0 | L29: 0
H30: 0 | L30: 0
A31: 4 | B31: Sous-Traitance identifiée
I32: =F32*D32 -> 0 | L32: 0
I33: =F33*D33 -> 0 | L33: 0
I34: =F34*D34 -> 0 | L34: 0
G35: COÛTS DIRECTS | H35: =SUM(H12:H34) -> 0 | I35: =SUM(I32:I34) -> 0 | L35: =SUM(L12:L34) -> 0
A36: N.B. | B36: En cas de plantation, application d'un pourcentage de garantie de reprise sur les postes 1, 2 et 3
B38: TOTAL TRAVAUX PROPRES | C38: Coûts indirects/CA (%) (1) | F38: Marge brute/CA (%) (1+2) | G38: =E38+E39 -> 0% | H38: =H35*G38 -> 0
C39: Bénéfice/CA (%) (2) | F39: Coefficient de marge brute /Coûts directs (K) | G39: =100/(100-G38*100) -> 1.00 | H39: =H35*G39 -> 0
F41: TOTAL TRAVAUX SOUS TRAITES IDENTIFIES | G41: Bénéfice/coûts directs (%) | I41: =I35*H41 -> 0
G42: Coefficient | H42: =100/(100-H41*100) -> 1.00 | I42: =I35*H42 -> 0
A44: OBSERVATIONS | G44: PRIX DE VENTE HT | H44: =I42+H39 -> 0.00 €
G46: PRIX UNITAIRE DE VENTE HT | H46: =H44/H6 ->  | J46: par | K46: =IF($F$6<>0,$F$6,"") -> 
A56: Rendement journalier * : par homme ou par équipe pour une journée
A57: Total Travaux propres ** : Affectés à l'entreprise

Sheet (aide - exemple de calcul)
A1: ÉTUDE DE PRIX
B3: N° du prix : | E3: DÉSIGNATION DU PRIX : | F3: Engazonnement par placage | I3: Affaire : | J3: M. et Mme MARTIN
B5: Date : | C5: 2018-10-12 | E5: UNITÉ : | F5: m² | G5: Quantité : | H5: 200
B7: Date prévisionnelle de réalisation : | C7: Avril 2019 | G7: Rendement journalier * : | H7: 50
E9: Coûts Directs HT | J9: DÉPENSES RÉALISÉES HT
A10: N° | B10: DÉSIGNATION | C10: Unité | D10: Quantité Durée d'utilisation | E10: Main d'œuvre PU | F10: Matériaux et fourniture PU | G10: Matériel PU | H10: TOTAL TRAVAUX PROPRES ** | I10: TOTAL TRAVAUX S/TRAITÉS | J10: Qté | K10: P.U | L10: TOTAL
A11: 1 | B11: Main d'œuvre
B12: Chef de chantier | C12: Jour | D12: 4 | E12: 220.00 | H12: =E12*D12 -> 880.00 | L12: =K12*J12 -> 0
B13: Ouvrier qualifié | C13: Jour | D13: 4 | E13: 195.00 | H13: =E13*D13 -> 780.00 | L13: =K13*J13 -> 0
H14: 0 | L14: 0
H15: 0 | L15: 0
H16: 0 | L16: 0
H17: 0 | L17: 0
A18: 2 | B18: Matériaux et fournitures
B19: Terreau en sac de 80 l (Éts XX) | C19: Sac | D19: 5 | F19: 15.60 | H19: =F19*D19 -> 78.00 | L19: =K19*J19 -> 0
B20: Gazon de plaquage (Entreprise YY) | C20: m² | D20: 220 | F20: 4.50 | H20: =F20*D20 -> 990.00 | L20: =K20*J20 -> 0
B21: Décharge Déchets Verts (Ent. WW) | C21: T | D21: 0.1 | F21: 34.00 | H21: =F21*D21 -> 3.40 | L21: =K21*J21 -> 0
H22: =F22*D22 -> 0 | L22: =K22*J22 -> 0
A23: 3 | B23: Matériel
B24: Camionnette | C24: Jour | D24: 4 | G24: 50.00 | H24: =G24*D24 -> 200.00 | L24: 0
B25: Motoculteur | C25: Jour | D25: 4 | G25: 15.00 | H25: 60.00 | L25: 0
H26: 0 | L26: 0
H27: 0 | L27: 0
H28: 0 | L28: 0
H29: 0 | L29: 0
A30: 4 | B30: Sous-Traitance identifiée
I31: =F31*D31 -> 0 | L31: 0
I32: =F32*D32 -> 0 | L32: 0
I33: =F33*D33 -> 0 | L33: 0
G34: COÛTS DIRECTS | H34: =SUM(H11:H33) -> 2,991.40 | I34: =SUM(I31:I33) -> 0 | L34: =SUM(L11:L33) -> 0
A35: N.B. | B35: En cas de plantation, application d'un pourcentage de garantie de reprise sur les postes 1, 2 et 3
B37: TOTAL TRAVAUX PROPRES | C37: Coûts indirects/CA (%) (1) | E37: 25% | F37: Marge brute/CA (%) (1+2) | G37: =E37+E38 -> 35% | H37: =H34*G37 -> 1,046.99
C38: Bénéfice/CA (%) (2) | E38: 10% | F38: Coefficient de marge brute /Coûts directs (K) | G38: =100/(100-G37*100) -> 1.54 | H38: =H34*G38 -> 4,602.15
F40: TOTAL TRAVAUX SOUS TRAITES IDENTIFIES | G40: Bénéfice/coûts directs (%) | H40: 20% | I40: =I34*H40 -> 0
G41: Coefficient | H41: =100/(100-H40*100) -> 1.25 | I41: =I34*H41 -> 0
A43: OBSERVATIONS | G43: PRIX DE VENTE HT | H43: =I41+H38 -> 4,602.15 €
G45: PRIX UNITAIRE DE VENTE HT | H45: =H43/H5 -> 23.01 € | J45: par | K45: =IF($F$5<>0,$F$5,"") -> m²
A55: Rendement journalier * : par homme ou par équipe pour une journée
A56: Total Travaux propres ** : Affectés à l'entreprise
